fUSD/lending_fUSD_20240329
["ID","MTS","AMOUNT","RATE_DAILY","PERIOD"]
[320938743,1711717876791,-773.51,0.00053698,120]
[320938744,1711717876805,-618.06,0.00053698,120]
[320938745,1711717876820,-1006.88,0.00053698,120]
[320938746,1711717876834,-892.02,0.00053698,120]
[320938747,1711717876848,-1871.96,0.00053698,120]
[320938748,1711717876863,-576.09,0.00053698,120]
[320938749,1711717876879,-1084.24,0.00053698,120]
[320938750,1711717876894,-500.0,0.00053698,120]
[320938751,1711717876911,-500.0,0.00053698,120]
[320938752,1711717876928,-1017.92,0.00053698,120]
[320938753,1711717876945,-500.0,0.00053698,120]
[320938754,1711717876961,-500.0,0.00053698,120]
[320938755,1711717876976,-1346.91,0.00053698,120]
[320938756,1711717876994,-7918.66,0.00053698,120]
[320938757,1711717877010,-1251.92,0.00053698,120]
[320938758,1711717877025,-759.82,0.00053698,120]
[320938759,1711717877040,-567.98,0.00053698,120]
[320938760,1711717877055,-833.99,0.00053698,120]
[320938761,1711717877076,-500.0,0.00053698,120]
[320938762,1711717877088,-500.0,0.00053698,120]
[320938763,1711717877098,-516.58282317,0.00053698,120]
[320938764,1711717877107,-500.0,0.00053698,120]
[320938765,1711717877117,-613.74,0.00053698,120]
[320938766,1711717877126,-629.65,0.00053698,120]
[320938767,1711717877136,-659.77,0.00053698,120]
[320938768,1711717877324,-192.35831293,0.00053698,120]
[320938769,1711717877354,-753.42,0.00053698,120]
[320938770,1711717877370,-500.0,0.00053698,120]
[320938771,1711717877380,-1665.88,0.00053698,120]
[320938772,1711717877390,-1013.23,0.00053698,120]
[320938773,1711717877405,-970.01,0.00053698,120]
[320938774,1711717877415,-885.14,0.00053698,21]
[320938775,1711717877425,-552.18,0.00053698,120]
[320938776,1711717877435,-542.16,0.00053698,120]
[320938777,1711717877444,-885.51,0.00053698,120]
[320938778,1711717877454,-917.94,0.00053698,120]
[320938779,1711717877463,-1173.66,0.00053698,120]
[320938780,1711717877472,-623.83,0.00053698,120]
[320938781,1711717877482,-553.85,0.00053698,120]
[320938782,1711717877491,-1874.35,0.00053698,120]
[320938783,1711717877501,-1018.16,0.00053698,120]
[320938784,1711717877510,-630.06,0.00053698,120]
[320938785,1711717877519,-546.14,0.00053698,120]
[320938786,1711717877528,-2627.15,0.00053698,120]
[320938787,1711717877537,-500.0,0.00053698,120]
[320938788,1711717877547,-1014.49,0.00053698,120]
[320938789,1711717877557,-1300.2,0.00053698,120]
[320938790,1711717877566,-1025.95,0.00053698,120]
[320938791,1711717877578,-984.89,0.00053698,120]
[320938792,1711717877587,-1789.86,0.00053698,120]
[320938793,1711717877597,-500.0,0.00053698,120]
[320938794,1711717877606,-506.84,0.00053698,120]
[320938795,1711717877614,-840.09,0.00053698,120]
[320938796,1711717877624,-678.1,0.00053698,120]
[320938797,1711717877634,-577.48,0.00053698,120]
[320938798,1711717877643,-500.0,0.00053698,120]
[320938799,1711717877653,-505.19,0.00053698,120]
[320938800,1711717877667,-742.6,0.00053698,120]
[320938801,1711717877677,-732.01,0.00053698,120]
[320938802,1711717877687,-555.83,0.00053698,120]
[320938803,1711717877696,-534.07,0.00053698,120]
[320938804,1711717877706,-1115.2,0.00053698,120]
[320938805,1711717877715,-500.0,0.00053698,120]
[320938806,1711717877724,-500.0,0.00053698,120]
[320938807,1711717877734,-1065.99,0.00053698,120]
[320938808,1711717877744,-331.67907217,0.00053698,120]
[320938809,1711717877754,-549.59,0.00053698,120]
[320938810,1711717877763,-617.87,0.00053698,120]
[320938811,1711717877772,-2105.1,0.00053698,120]
[320938812,1711717877781,-544.66,0.00053698,120]
[320938813,1711717877790,-693.07,0.00053698,120]
[320938814,1711717877799,-967.17,0.00053698,120]
[320938815,1711717877808,-573.1,0.00053698,120]
[320938816,1711717877817,-720.75,0.00053698,120]
[320938817,1711717877829,-500.0,0.00053698,120]
[320938818,1711717877838,-556.26,0.00053698,120]
[320938819,1711717877847,-1304.35,0.00053698,120]
[320938820,1711717877857,-1140.14,0.00053698,120]
[320938821,1711717877866,-930.22,0.00053698,120]
[320938822,1711717877876,-161.032921,0.00053748,112]
[320938823,1711717877885,-386.92448372,0.0005375,30]
[320938824,1711717877894,-152.22649186,0.00053774,60]
[320938825,1711717877904,-151.0,0.00053781,120]
[320938826,1711717877913,-221.79,0.000538,14]
[320938827,1711717877922,-152.65,0.000538,7]
[320938828,1711717877931,-152.65,0.000538,7]
[320938829,1711717877939,-152.65,0.000538,7]
[320938830,1711717877949,-152.65,0.000538,7]
[320938831,1711717877958,-152.65,0.000538,7]
[320938832,1711717877967,-152.65,0.000538,7]
[320938833,1711717877976,-152.65,0.000538,7]
[320938834,1711717877985,-152.65,0.000538,7]
[320938835,1711717877994,-152.65,0.000538,7]
[320938836,1711717878003,-152.65,0.000538,7]
[320938837,1711717878013,-152.65,0.000538,7]
[320938838,1711717878022,-152.65,0.000538,7]
[320938839,1711717878031,-152.65,0.000538,7]
[320938840,1711717878041,-152.65,0.000538,7]
[320938841,1711717878050,-152.65,0.000538,7]
[320938842,1711717878059,-152.65,0.000538,7]
[320938843,1711717878069,-3526.06,0.000538,7]
[320938844,1711717878078,-3526.06,0.000538,7]
[320938845,1711717878088,-3526.06,0.000538,7]
[320938846,1711717878097,-3526.06,0.000538,7]
[320938847,1711717878106,-3526.06,0.000538,7]
[320938848,1711717878116,-3526.06,0.000538,7]
[320938849,1711717878125,-3526.06,0.000538,7]
[320938850,1711717878134,-3526.06,0.000538,7]
[320938851,1711717878144,-3526.06,0.000538,7]
[320938852,1711717878153,-3526.06,0.000538,7]
[320938853,1711717878163,-3526.06,0.000538,7]
[320938854,1711717878173,-3526.06,0.000538,7]
[320938855,1711717878182,-3526.06,0.000538,7]
[320938856,1711717878192,-3526.06,0.000538,7]
[320938857,1711717878201,-3526.06,0.000538,7]
[320938858,1711717878210,-3526.06,0.000538,7]
[320938859,1711717878219,-3526.06,0.000538,7]
[320938860,1711717878228,-3526.06,0.000538,7]
[320938861,1711717878238,-3526.06,0.000538,7]
[320938862,1711717878247,-3526.06,0.000538,7]
[320938863,1711717878256,-533.89085863,0.000538,2]
[320938864,1711717878264,-159.43933229,0.00053855,60]
[320938865,1711717878274,-23977.19299553,0.000539,120]
[320938866,1711717878283,-999.6,0.000539,2]
[320938867,1711717878293,-305.56,0.000539,2]
[320938868,1711717878303,-1748.17,0.00053972,120]
[320938869,1711717878313,-385.95676948,0.00053972,120]
[320938870,1711717878323,-221.32,0.00053972,120]
[320938871,1711717878331,-280.87283814,0.00053972,120]
[320938872,1711717878341,-778.84,0.00053972,120]
[320938873,1711717878349,-500.0,0.00053972,120]
[320938874,1711717878358,-1080.64,0.00053972,120]
[320938875,1711717878367,-5519.83,0.00053972,120]
[320938876,1711717878376,-1991.3,0.00053972,120]
[320938877,1711717878385,-1398.69,0.00053972,120]
[320938878,1711717878394,-2247.5,0.00053972,120]
[320938879,1711717878403,-2304.49,0.00053972,120]
[320938880,1711717878413,-837.52,0.00053972,120]
[320938881,1711717878422,-500.0,0.00053972,120]
[320938882,1711717878431,-500.0,0.00053972,120]
[320938883,1711717878440,-4548.89,0.00053972,120]
[320938884,1711717878449,-1038.32,0.00053972,120]
[320938885,1711717878459,-869.63,0.00053972,120]
[320938886,1711717878469,-929.2,0.00053972,120]
[320938887,1711717878478,-522.99,0.00053972,120]
[320938888,1711717878488,-775.87,0.00053972,120]
[320938889,1711717878497,-2120.23,0.00053972,120]
[320938890,1711717878507,-500.0,0.00053972,120]
[320938891,1711717878516,-848.81,0.00053972,120]
[320938892,1711717878525,-12375.59,0.00053972,120]
[320938893,1711717878534,-2381.03,0.00053972,120]
[320938894,1711717878543,-1445.92,0.00053972,120]
[320938895,1711717878553,-500.0,0.00053972,120]
[320938896,1711717878562,-773.51,0.00053972,120]
[320938897,1711717878572,-618.06,0.00053972,120]
[320938898,1711717878581,-1006.88,0.00053972,120]
[320938899,1711717878591,-892.02,0.00053972,120]
[320938900,1711717878601,-1871.96,0.00053972,120]
[320938901,1711717878610,-576.09,0.00053972,120]
[320938902,1711717878619,-1084.24,0.00053972,120]
[320938903,1711717878628,-500.0,0.00053972,120]
[320938904,1711717878638,-500.0,0.00053972,120]
[320938905,1711717878647,-1017.92,0.00053972,120]
[320938906,1711717878657,-500.0,0.00053972,120]
[320938907,1711717878666,-500.0,0.00053972,120]
[320938908,1711717878678,-1346.91,0.00053972,120]
[320938909,1711717878687,-7918.66,0.00053972,120]
[320938910,1711717878696,-1251.92,0.00053972,120]
[320938911,1711717878706,-759.82,0.00053972,120]
[320938912,1711717878715,-567.98,0.00053972,120]
[320938913,1711717878724,-833.99,0.00053972,120]
[320938914,1711717878733,-500.0,0.00053972,120]
[320938915,1711717878742,-479.41087009,0.00053972,120]
[320938916,1711717878751,-231.96266085,0.00053972,120]
[320938917,1711717878761,-613.74,0.00053972,120]
[320938918,1711717878772,-629.65,0.00053972,120]
[320938919,1711717878782,-659.77,0.00053972,120]
[320938920,1711717878791,-753.42,0.00053972,120]
[320938921,1711717878801,-583.32776585,0.00053972,120]
[320938922,1711717878810,-1665.88,0.00053972,120]
[320938923,1711717878819,-1013.23,0.00053972,120]
[320938924,1711717878830,-970.01,0.00053972,120]
[320938925,1711717878840,-885.14,0.00053972,21]
[320938926,1711717878850,-552.18,0.00053972,120]
[320938927,1711717878859,-542.16,0.00053972,120]
[320938928,1711717878868,-885.51,0.00053972,120]
[320938929,1711717878878,-917.94,0.00053972,120]
[320938930,1711717878888,-1173.66,0.00053972,120]
[320938931,1711717878898,-623.83,0.00053972,120]
[320938932,1711717878907,-553.85,0.00053972,120]
[320938933,1711717878917,-1874.35,0.00053972,120]
[320938934,1711717878927,-1018.16,0.00053972,120]
[320938935,1711717878935,-630.06,0.00053972,120]
[320938936,1711717878945,-546.14,0.00053972,120]
[320938937,1711717878954,-2627.15,0.00053972,120]
[320938938,1711717878964,-500.0,0.00053972,120]
[320938939,1711717878974,-1014.49,0.00053972,120]
[320938940,1711717878983,-1300.2,0.00053972,120]
[320938941,1711717878992,-1025.95,0.00053972,120]
[320938942,1711717879002,-984.89,0.00053972,120]
[320938943,1711717879013,-1789.86,0.00053972,120]
[320938944,1711717879022,-624.41434803,0.00053972,120]
[320938945,1711717879031,-506.84,0.00053972,120]
[320938946,1711717879040,-840.09,0.00053972,120]
[320938947,1711717879049,-678.1,0.00053972,120]
[320938948,1711717879059,-577.48,0.00053972,120]
[320938949,1711717879068,-505.19,0.00053972,120]
[320938950,1711717879080,-500.0,0.00053972,120]
[320938951,1711717879089,-742.6,0.00053972,120]
[320938952,1711717879098,-732.01,0.00053972,120]
[320938953,1711717879107,-555.83,0.00053972,120]
[320938954,1711717879116,-534.07,0.00053972,120]
[320938955,1711717879125,-1115.2,0.00053972,120]
[320938956,1711717879134,-500.0,0.00053972,120]
[320938957,1711717879143,-233.6,0.00053972,120]
[320938958,1711717879153,-1065.99,0.00053972,120]
[320938959,1711717879163,-549.59,0.00053972,120]
[320938960,1711717879172,-617.87,0.00053972,120]
[320938961,1711717879181,-2105.1,0.00053972,120]
[320938962,1711717879191,-693.07,0.00053972,120]
[320938963,1711717879199,-544.66,0.00053972,120]
[320938964,1711717879208,-967.17,0.00053972,120]
[320938965,1711717879217,-573.1,0.00053972,120]
[320938966,1711717879226,-720.75,0.00053972,120]
[320938967,1711717879235,-500.0,0.00053972,120]
[320938968,1711717879244,-556.26,0.00053972,120]
[320938969,1711717879253,-1304.35,0.00053972,120]
[320938970,1711717879262,-1140.14,0.00053972,120]
[320938971,1711717879272,-930.22,0.00053972,120]
[320938972,1711717879281,-19884.37747657,0.00053987,7]
[320938973,1711717879290,-271119.77717463,0.00054,2]
[320938974,1711717879298,-275179.98305742,0.00054,2]
[320938975,1711717879307,-250.16242852,0.00054,120]
[320938976,1711717879316,-190.17276354,0.00054,120]
[320938977,1711717879327,-258.4,0.00054027,120]
[320938978,1711717879336,-5800.0,0.00054076,7]
[320938979,1711717879345,-5800.0,0.00054085,7]
[320938980,1711717879355,-5800.0,0.00054093,7]
[320938981,1711717879364,-5800.0,0.00054102,7]
[320938982,1711717879373,-5800.0,0.0005411,7]
[320938983,1711717879382,-5800.0,0.00054119,7]
[320938984,1711717879391,-5800.0,0.00054127,7]
[320938985,1711717879400,-5800.0,0.00054136,7]
[320938986,1711717879409,-5800.0,0.00054144,7]
[320938987,1711717879418,-173.032921,0.00054148,110]
[320938988,1711717879427,-5800.0,0.00054153,7]
[320938989,1711717879436,-305.56,0.0005416,2]
[320938990,1711717879446,-5800.0,0.00054161,7]
[320938991,1711717879455,-5800.0,0.0005417,7]
[320938992,1711717879464,-5800.0,0.00054178,7]
[320938993,1711717879474,-5800.0,0.00054187,7]
[320938994,1711717879483,-5800.0,0.00054195,7]
[320938995,1711717879493,-999.6,0.000542,2]
[320938996,1711717879502,-5800.0,0.00054204,7]
[320938997,1711717879511,-5800.0,0.00054212,7]
[320938998,1711717879520,-5800.0,0.00054221,7]
[320938999,1711717879529,-5800.0,0.00054229,7]
[320939000,1711717879539,-5800.0,0.00054238,7]
[320939001,1711717879548,-1748.17,0.00054246,120]
[320939002,1711717879558,-5800.0,0.00054246,7]
[320939003,1711717879567,-778.84,0.00054246,120]
[320939004,1711717879579,-213.26354918,0.00054246,120]
[320939005,1711717879588,-1080.64,0.00054246,120]
[320939006,1711717879597,-5519.83,0.00054246,120]
[320939007,1711717879606,-1991.3,0.00054246,120]
[320939008,1711717879615,-1398.69,0.00054246,120]
[320939009,1711717879624,-2247.5,0.00054246,120]
[320939010,1711717879633,-2304.49,0.00054246,120]
[320939011,1711717879642,-151.0,0.00054246,120]
[320939012,1711717879651,-837.52,0.00054246,120]
[320939013,1711717879660,-151.0,0.00054246,120]
[320939014,1711717879669,-244.776896,0.00054246,120]
[320939015,1711717879679,-500.0,0.00054246,120]
[320939016,1711717879688,-4548.89,0.00054246,120]
[320939017,1711717879696,-1038.32,0.00054246,120]
[320939018,1711717879706,-869.63,0.00054246,120]
[320939019,1711717879715,-929.2,0.00054246,120]
[320939020,1711717879724,-522.99,0.00054246,120]
[320939021,1711717879733,-151.0,0.00054246,120]
[320939022,1711717879742,-775.87,0.00054246,120]
[320939023,1711717879753,-2120.23,0.00054246,120]
[320939024,1711717879762,-500.0,0.00054246,120]
[320939025,1711717879771,-848.81,0.00054246,120]
[320939026,1711717879898,-151.0,0.00054246,120]
[320939027,1711717879912,-12375.59,0.00054246,120]
[320939028,1711717879921,-2381.03,0.00054246,120]
[320939029,1711717879931,-1445.92,0.00054246,120]
[320939030,1711717879939,-500.0,0.00054246,120]
[320939031,1711717879948,-773.51,0.00054246,120]
[320939032,1711717879957,-151.0,0.00054246,120]
[320939033,1711717879966,-618.06,0.00054246,120]
[320939034,1711717879975,-199.293654,0.00054246,120]
[320939035,1711717879983,-151.0,0.00054246,120]
[320939036,1711717879992,-1006.88,0.00054246,120]
[320939037,1711717880001,-151.0,0.00054246,120]
[320939038,1711717880010,-892.02,0.00054246,120]
[320939039,1711717880019,-151.0,0.00054246,7]
[320939040,1711717880028,-151.0,0.00054246,120]
[320939041,1711717880037,-1871.96,0.00054246,120]
[320939042,1711717880046,-576.09,0.00054246,120]
[320939043,1711717880056,-1084.24,0.00054246,120]
[320939044,1711717880065,-500.0,0.00054246,120]
[320939045,1711717880074,-500.0,0.00054246,120]
[320939046,1711717880083,-1017.92,0.00054246,120]
[320939047,1711717880093,-221.57017704,0.00054246,120]
[320939048,1711717880102,-500.0,0.00054246,120]
[320939049,1711717880111,-1346.91,0.00054246,120]
[320939050,1711717880121,-7918.66,0.00054246,120]
[320939051,1711717880130,-1251.92,0.00054246,120]
[320939052,1711717880139,-759.82,0.00054246,120]
[320939053,1711717880150,-567.98,0.00054246,120]
[320939054,1711717880159,-833.99,0.00054246,120]
[320939055,1711717880169,-500.0,0.00054246,120]
[320939056,1711717880178,-151.0,0.00054246,120]
[320939057,1711717880188,-151.0,0.00054246,120]
[320939058,1711717880197,-613.74,0.00054246,120]
[320939059,1711717880206,-629.65,0.00054246,120]
[320939060,1711717880216,-659.77,0.00054246,120]
[320939061,1711717880225,-151.0,0.00054246,120]
[320939062,1711717880234,-753.42,0.00054246,120]
[320939063,1711717880243,-1665.88,0.00054246,120]
[320939064,1711717880252,-1013.23,0.00054246,120]
[320939065,1711717880262,-970.01,0.00054246,120]
[320939066,1711717880272,-151.0,0.00054246,120]
[320939067,1711717880281,-885.14,0.00054246,21]
[320939068,1711717880291,-552.18,0.00054246,120]
[320939069,1711717880300,-542.16,0.00054246,120]
[320939070,1711717880309,-885.51,0.00054246,120]
[320939071,1711717880318,-917.94,0.00054246,120]
[320939072,1711717880329,-1173.66,0.00054246,120]
[320939073,1711717880338,-151.0,0.00054246,120]
[320939074,1711717880348,-623.83,0.00054246,120]
[320939075,1711717880357,-553.85,0.00054246,120]
[320939076,1711717880367,-1874.35,0.00054246,120]
[320939077,1711717880377,-151.0,0.00054246,120]
[320939078,1711717880387,-1018.16,0.00054246,120]
[320939079,1711717880397,-151.0,0.00054246,30]
[320939080,1711717880406,-630.06,0.00054246,120]
[320939081,1711717880416,-546.14,0.00054246,120]
[320939082,1711717880427,-2627.15,0.00054246,120]
[320939083,1711717880437,-500.0,0.00054246,120]
[320939084,1711717880447,-1014.49,0.00054246,120]
[320939085,1711717880457,-1300.2,0.00054246,120]
[320939086,1711717880466,-1025.95,0.00054246,120]
[320939087,1711717880476,-1228.11,0.00054246,120]
[320939088,1711717880485,-151.0,0.00054246,120]
[320939089,1711717880495,-984.89,0.00054246,120]
[320939090,1711717880505,-1789.86,0.00054246,120]
[320939091,1711717880514,-151.0,0.00054246,120]
[320939092,1711717880524,-840.09,0.00054246,120]
[320939093,1711717880533,-506.84,0.00054246,120]
[320939094,1711717880544,-678.1,0.00054246,120]
[320939095,1711717880553,-577.48,0.00054246,120]
[320939096,1711717880563,-505.19,0.00054246,120]
[320939097,1711717880573,-500.0,0.00054246,120]
[320939098,1711717880583,-742.6,0.00054246,120]
[320939099,1711717880593,-151.0,0.00054246,120]
[320939100,1711717880602,-732.01,0.00054246,120]
[320939101,1711717880612,-555.83,0.00054246,120]
[320939102,1711717880621,-534.07,0.00054246,120]
[320939103,1711717880631,-1115.2,0.00054246,120]
[320939104,1711717880640,-500.0,0.00054246,120]
[320939105,1711717880651,-1065.99,0.00054246,120]
[320939106,1711717880661,-151.0,0.00054246,120]
[320939107,1711717880671,-151.0,0.00054246,120]
[320939108,1711717880682,-156.77025,0.00054246,120]
[320939109,1711717880692,-549.59,0.00054246,120]
[320939110,1711717880706,-617.87,0.00054246,120]
[320939111,1711717880765,-2105.1,0.00054246,120]
[320939112,1711717880776,-151.0,0.00054246,30]
[320939113,1711717880785,-151.0,0.00054246,30]
[320939114,1711717880794,-693.07,0.00054246,120]
[320939115,1711717880803,-544.66,0.00054246,120]
[320939116,1711717880812,-967.17,0.00054246,120]
[320939117,1711717880821,-573.1,0.00054246,120]
[320939118,1711717880833,-720.75,0.00054246,120]
[320939119,1711717880842,-151.0,0.00054246,14]
[320939120,1711717880852,-500.0,0.00054246,120]
[320939121,1711717880861,-556.26,0.00054246,120]
[320939122,1711717880870,-151.0,0.00054246,120]
[320939123,1711717880879,-1304.35,0.00054246,120]
[320939124,1711717880889,-1140.14,0.00054246,120]
[320939125,1711717880898,-930.22,0.00054246,120]
[320939126,1711717880908,-158.40513937,0.00054273,60]
[320939127,1711717880917,-158.40513937,0.00054343,60]
[320939128,1711717880926,-157.032921,0.00054348,114]
[320939129,1711717880935,-162.21511491,0.00054376,60]
[320939130,1711717880944,-439.95652199,0.000544,110]
[320939131,1711717880954,-161.032921,0.00054448,113]
[320939132,1711717880963,-347.77,0.00054466,120]
[320939133,1711717880973,-15000.0,0.0005448,30]
[320939134,1711717880983,-1748.17,0.0005452,120]
[320939135,1711717880992,-151.0,0.0005452,120]
[320939136,1711717881002,-151.0,0.0005452,120]
[320939137,1711717881012,-151.0,0.0005452,120]
[320939138,1711717881021,-778.84,0.0005452,120]
[320939139,1711717881030,-1080.64,0.0005452,120]
[320939140,1711717881040,-151.0,0.0005452,120]
[320939141,1711717881049,-153.588542,0.0005452,120]
[320939142,1711717881059,-5519.83,0.0005452,120]
[320939143,1711717881074,-151.0,0.0005452,120]
[320939144,1711717881086,-1991.3,0.0005452,120]
[320939145,1711717881094,-1398.69,0.0005452,120]
[320939146,1711717881104,-702.56,0.0005452,120]
[320939147,1711717881113,-2247.5,0.0005452,120]
[320939148,1711717881122,-2304.49,0.0005452,120]
[320939149,1711717881132,-837.52,0.0005452,120]
[320939150,1711717881141,-500.0,0.0005452,120]
[320939151,1711717881151,-4548.89,0.0005452,120]
[320939152,1711717881160,-1038.32,0.0005452,120]
[320939153,1711717881170,-869.63,0.0005452,120]
[320939154,1711717881179,-929.2,0.0005452,120]
[320939155,1711717881188,-522.99,0.0005452,120]
[320939156,1711717881198,-775.87,0.0005452,120]
[320939157,1711717881207,-2120.23,0.0005452,120]
[320939158,1711717881216,-500.0,0.0005452,120]
[320939159,1711717881225,-848.81,0.0005452,120]
[320939160,1711717881235,-12375.59,0.0005452,120]
[320939161,1711717881244,-2381.03,0.0005452,120]
[320939162,1711717881254,-1445.92,0.0005452,120]
[320939163,1711717881263,-500.0,0.0005452,120]
[320939164,1711717881273,-773.51,0.0005452,120]
[320939165,1711717881282,-618.06,0.0005452,120]
[320939166,1711717881291,-1006.88,0.0005452,120]
[320939167,1711717881300,-892.02,0.0005452,120]
[320939168,1711717881310,-1871.96,0.0005452,120]
[320939169,1711717881319,-576.09,0.0005452,120]
[320939170,1711717881330,-1084.24,0.0005452,120]
[320939171,1711717881340,-500.0,0.0005452,120]
[320939172,1711717881349,-500.0,0.0005452,120]
[320939173,1711717881358,-1017.92,0.0005452,120]
[320939174,1711717881367,-500.0,0.0005452,120]
[320939175,1711717881377,-1346.91,0.0005452,120]
[320939176,1711717881386,-7918.66,0.0005452,120]
[320939177,1711717881395,-1251.92,0.0005452,120]
[320939178,1711717881405,-759.82,0.0005452,120]
[320939179,1711717881414,-567.98,0.0005452,120]
[320939180,1711717881423,-833.99,0.0005452,120]
[320939181,1711717881432,-500.0,0.0005452,120]
[320939182,1711717881442,-613.74,0.0005452,120]
[320939183,1711717881452,-629.65,0.0005452,120]
[320939184,1711717881461,-659.77,0.0005452,120]
[320939185,1711717881471,-753.42,0.0005452,120]
[320939186,1711717881481,-1665.88,0.0005452,120]
[320939187,1711717881490,-1013.23,0.0005452,120]
[320939188,1711717881500,-970.01,0.0005452,120]
[320939189,1711717881510,-885.14,0.0005452,21]
[320939190,1711717881520,-552.18,0.0005452,120]
[320939191,1711717881530,-542.16,0.0005452,120]
[320939192,1711717881539,-885.51,0.0005452,120]
[320939193,1711717881548,-917.94,0.0005452,120]
[320939194,1711717881558,-1173.66,0.0005452,120]
[320939195,1711717881567,-553.85,0.0005452,120]
[320939196,1711717881578,-623.83,0.0005452,120]
[320939197,1711717881588,-1874.35,0.0005452,120]
[320939198,1711717881598,-1018.16,0.0005452,120]
[320939199,1711717881608,-630.06,0.0005452,120]
[320939200,1711717881617,-546.14,0.0005452,120]
[320939201,1711717881627,-2627.15,0.0005452,120]
[320939202,1711717881637,-500.0,0.0005452,120]
[320939203,1711717881646,-1014.49,0.0005452,120]
[320939204,1711717881657,-1300.2,0.0005452,120]
[320939205,1711717881666,-1025.95,0.0005452,120]
[320939206,1711717881677,-984.89,0.0005452,120]
[320939207,1711717881687,-1789.86,0.0005452,120]
[320939208,1711717881698,-506.84,0.0005452,120]
[320939209,1711717881709,-840.09,0.0005452,120]
[320939210,1711717881719,-678.1,0.0005452,120]
[320939211,1711717881728,-577.48,0.0005452,120]
[320939212,1711717881738,-505.19,0.0005452,120]
[320939213,1711717881748,-329.3242811,0.0005452,120]
[320939214,1711717881759,-742.6,0.0005452,120]
[320939215,1711717881768,-732.01,0.0005452,120]
[320939216,1711717881778,-555.83,0.0005452,120]
[320939217,1711717881787,-534.07,0.0005452,120]
[320939218,1711717881797,-1115.2,0.0005452,120]
[320939219,1711717881807,-500.0,0.0005452,120]
[320939220,1711717881817,-1065.99,0.0005452,120]
[320939221,1711717881827,-549.59,0.0005452,120]
[320939222,1711717881836,-617.87,0.0005452,120]
[320939223,1711717881846,-2105.1,0.0005452,120]
[320939224,1711717881855,-693.07,0.0005452,120]
[320939225,1711717881864,-544.66,0.0005452,120]
[320939226,1711717881873,-967.17,0.0005452,120]
[320939227,1711717881882,-573.1,0.0005452,120]
[320939228,1711717881891,-720.75,0.0005452,120]
[320939229,1711717881901,-500.0,0.0005452,120]
[320939230,1711717881910,-556.26,0.0005452,120]
[320939231,1711717881921,-1304.35,0.0005452,120]
[320939232,1711717881930,-1140.14,0.0005452,120]
[320939233,1711717881940,-2417.23504057,0.00054584,31]
[320939234,1711717881949,-208.03707595,0.000546,7]
[320939235,1711717881958,-906.54112024,0.000546,30]
[320939236,1711717881967,-258.4,0.0005463,120]
[320939237,1711717881976,-3346.91849278,0.000547,2]
[320939238,1711717881985,-1056.47,0.00054752,2]
[320939239,1711717881995,-500.0,0.00054794,120]
[320939240,1711717882004,-314.17176105,0.00054794,120]
[320939241,1711717882013,-1748.17,0.00054794,120]
[320939242,1711717882022,-666.0,0.00054794,120]